fUST/lending_fUST_20240727
["ID","MTS","AMOUNT","RATE_DAILY","PERIOD"]
[333325834,1722057045945,-500.0,0.00013698,2]
[333325835,1722057045956,-500.0,0.00013698,2]
[333325836,1722057045966,-500.0,0.00013698,2]
[333325837,1722057045977,-500.0,0.00013698,2]
[333325838,1722057045988,-155.3404684,0.00013698,2]
[333325839,1722057045997,-216.02967002,0.00013698,2]
[333325840,1722057046007,-500.0,0.00013698,2]
[333325841,1722057046017,-505.6,0.00013698,2]
[333325842,1722057046029,-500.0,0.00013698,2]
[333325843,1722057046039,-151.0,0.00013699,2]
[333325844,1722057046049,-151.0,0.00013699,2]
[333325845,1722057046058,-151.0,0.00013699,2]
[333325846,1722057046067,-688.34386,0.00013699,2]
[333325847,1722057046076,-3000.0,0.00013699,2]
[333325848,1722057046087,-150.112233,0.000137,2]
[333325849,1722057046097,-150.112233,0.000137,2]
[333325850,1722057046107,-413.4893308,0.000137,2]
[333325851,1722057046117,-620.59130291,0.00013712,2]
[333325852,1722057046128,-150.112233,0.000138,2]
[333325853,1722057046138,-150.112233,0.000138,2]
[333325854,1722057046149,-150.112233,0.000138,2]
[333325855,1722057046160,-156.5036239,0.00013832,2]
[333325856,1722057046170,-1409.0,0.0001385,2]
[333325857,1722057046179,-512.031,0.00013861,2]
[333325858,1722057046189,-150.112233,0.000139,2]
[333325859,1722057046201,-150.112233,0.000139,2]
[333325860,1722057046211,-840.293364,0.00013951,2]
[333325861,1722057046222,-840.293364,0.00013951,2]
[333325862,1722057046233,-151.0,0.00013951,2]
[333325863,1722057046244,-151.0,0.00013951,2]
[333325864,1722057046255,-838.52,0.00013951,2]
[333325865,1722057046266,-151.0,0.00013952,2]
[333325866,1722057046275,-165.537252,0.00013952,2]
[333325867,1722057046284,-165.537252,0.00013952,2]
[333325868,1722057046296,-170.030515,0.00013952,2]
[333325869,1722057046307,-170.030515,0.00013952,2]
[333325870,1722057046322,-151.0,0.00013961,2]
[333325871,1722057046332,-782.24,0.00013961,2]
[333325872,1722057046342,-151.0,0.00013961,2]
[333325873,1722057046353,-838.52,0.00013961,2]
[333325874,1722057046365,-840.293364,0.00013962,2]
[333325875,1722057046376,-840.293364,0.00013962,2]
[333325876,1722057046389,-151.0,0.00013962,2]
[333325877,1722057046403,-151.0,0.00013962,2]
[333325878,1722057046414,-782.24,0.0001397,2]
[333325879,1722057046426,-165.537252,0.0001397,2]
[333325880,1722057046437,-165.537252,0.0001397,2]
[333325881,1722057046448,-170.030515,0.0001397,2]
[333325882,1722057046460,-170.030515,0.0001397,2]
[333325883,1722057046470,-152.614333,0.00013971,2]
[333325884,1722057046481,-782.24,0.00013971,2]
[333325885,1722057046492,-782.24,0.00013971,2]
[333325886,1722057046504,-782.24,0.00013971,2]
[333325887,1722057046514,-782.24,0.00013971,2]
[333325888,1722057046523,-782.24,0.00013971,2]
[333325889,1722057046534,-782.24,0.00013971,2]
[333325890,1722057046544,-782.24,0.00013971,2]
[333325891,1722057046555,-782.46427424,0.00013971,2]
[333325892,1722057046566,-838.52,0.00013971,2]
[333325893,1722057046576,-838.52,0.00013971,2]
[333325894,1722057046588,-838.52,0.00013971,2]
[333325895,1722057046599,-838.52,0.00013971,2]
[333325896,1722057046610,-838.52,0.00013971,2]
[333325897,1722057046620,-838.65652295,0.00013971,2]
[333325898,1722057046631,-500.0,0.00013972,2]
[333325899,1722057046642,-500.0,0.00013972,2]
[333325900,1722057046652,-500.0,0.00013972,2]
[333325901,1722057046662,-500.0,0.00013972,2]
[333325902,1722057046673,-500.0,0.00013972,2]
[333325903,1722057046684,-500.0,0.00013972,2]
[333325904,1722057046695,-500.0,0.00013972,2]
[333325905,1722057046706,-500.0,0.00013972,2]
[333325906,1722057046717,-500.0,0.00013972,2]
[333325907,1722057046726,-500.0,0.00013972,2]
[333325908,1722057046737,-500.0,0.00013972,2]
[333325909,1722057046749,-500.0,0.00013972,2]
[333325910,1722057046760,-737.88,0.00013972,2]
[333325911,1722057046770,-348.61308731,0.00013972,2]
[333325912,1722057046779,-500.0,0.00013972,2]
[333325913,1722057046789,-500.0,0.00013972,2]
[333325914,1722057046798,-500.0,0.00013972,2]
[333325915,1722057046808,-729.05,0.00013972,2]
[333325916,1722057046819,-500.0,0.00013972,2]
[333325917,1722057046828,-1059.8,0.00013972,2]
[333325918,1722057046839,-500.0,0.00013972,2]
[333325919,1722057046849,-500.0,0.00013972,2]
[333325920,1722057046860,-549.64268531,0.00013972,2]
[333325921,1722057046869,-703.18,0.00013972,2]
[333325922,1722057046880,-500.0,0.00013972,2]
[333325923,1722057046890,-502.76569526,0.00013972,2]
[333325925,1722057046900,-516.97210084,0.00013972,2]
[333325927,1722057046910,-500.0,0.00013972,2]
[333325930,1722057046921,-505.27099133,0.00013972,2]
[333325932,1722057046932,-505.61158073,0.00013972,2]
[333325934,1722057046944,-452.94481847,0.00013972,2]
[333325937,1722057046955,-500.0,0.00013972,2]
[333325939,1722057046965,-500.0,0.00013972,2]
[333325941,1722057046975,-507.00156714,0.00013972,2]
[333325943,1722057046987,-500.0,0.00013972,2]
[333325945,1722057046997,-626.58,0.00013972,2]
[333325947,1722057047007,-500.0,0.00013972,2]
[333325949,1722057047017,-505.96971472,0.00013972,2]
[333325951,1722057047026,-705.64,0.00013972,2]
[333325953,1722057047036,-500.0,0.00013972,2]
[333325955,1722057047046,-512.01041319,0.00013972,2]
[333325957,1722057047055,-532.9,0.00013972,2]
[333325959,1722057047065,-500.0,0.00013972,2]
[333325961,1722057047074,-500.0,0.00013972,2]
[333325963,1722057047084,-593.45,0.00013972,2]
[333325965,1722057047093,-190.05372415,0.00013972,2]
[333325967,1722057047103,-500.0,0.00013972,2]
[333325969,1722057047113,-756.64,0.00013972,2]
[333325971,1722057047122,-500.0,0.00013972,2]
[333325973,1722057047131,-507.41,0.00013972,2]
[333325975,1722057047140,-520.77,0.00013972,2]
[333325977,1722057047150,-500.0,0.00013972,2]
[333325979,1722057047159,-500.0,0.00013972,2]
[333325981,1722057047169,-355.97088972,0.00013972,2]
[333325983,1722057047178,-500.0,0.00013972,2]
[333325985,1722057047188,-500.0,0.00013972,2]
[333325987,1722057047198,-500.0,0.00013972,2]
[333325990,1722057047208,-500.0,0.00013972,2]
[333325992,1722057047219,-500.0,0.00013972,2]
[333325994,1722057047229,-469.49319836,0.00013972,2]
[333325996,1722057047240,-500.0,0.00013972,2]
[333325998,1722057047250,-500.0,0.00013972,2]
[333326000,1722057047261,-876.51,0.00013972,2]
[333326002,1722057047272,-500.0,0.00013972,2]
[333326004,1722057047283,-500.0,0.00013972,2]
[333326006,1722057047295,-500.0,0.00013972,2]
[333326009,1722057047306,-341.8453048,0.00013972,2]
[333326011,1722057047319,-865.21,0.00013972,2]
[333326013,1722057047329,-563.58338137,0.00013972,2]
[333326015,1722057047341,-500.0,0.00013972,2]
[333326017,1722057047352,-804.25,0.00013972,2]
[333326019,1722057047362,-500.0,0.00013972,2]
[333326021,1722057047371,-500.0,0.00013972,2]
[333326024,1722057047381,-500.0,0.00013972,2]
[333326026,1722057047391,-500.0,0.00013972,2]
[333326028,1722057047400,-1361.0,0.00013972,2]
[333326030,1722057047411,-500.0,0.00013972,2]
[333326032,1722057047422,-175.39455562,0.00013972,2]
[333326034,1722057047433,-927.48,0.00013972,2]
[333326036,1722057047443,-500.0,0.00013972,2]
[333326039,1722057047456,-500.0,0.00013972,2]
[333326041,1722057047466,-500.0,0.00013972,2]
[333326043,1722057047477,-645.65,0.00013972,2]
[333326045,1722057047489,-422.8288485,0.00013972,2]
[333326047,1722057047500,-383.2498869,0.00013972,2]
[333326049,1722057047510,-639.02,0.00013972,2]
[333326051,1722057047520,-500.0,0.00013972,2]
[333326054,1722057047530,-500.0,0.00013972,2]
[333326056,1722057047542,-500.0,0.00013972,2]
[333326058,1722057047552,-500.0,0.00013972,2]
[333326060,1722057047562,-500.0,0.00013972,2]
[333326062,1722057047572,-644.9,0.00013972,2]
[333326064,1722057047584,-500.0,0.00013972,2]
[333326066,1722057047596,-165.537252,0.00013972,2]
[333326068,1722057047606,-165.537252,0.00013972,2]
[333326070,1722057047617,-165.537252,0.00013972,2]
[333326073,1722057047628,-165.537261,0.00013972,2]
[333326075,1722057047638,-500.0,0.00013972,2]
[333326077,1722057047647,-500.0,0.00013972,2]
[333326079,1722057047658,-510.40950242,0.00013972,2]
[333326081,1722057047668,-2424.87,0.00013972,2]
[333326083,1722057047678,-170.030515,0.00013972,2]
[333326085,1722057047688,-170.030515,0.00013972,2]
[333326087,1722057047700,-170.030515,0.00013972,2]
[333326089,1722057047709,-170.03051,0.00013972,2]
[333326091,1722057047718,-500.0,0.00013972,2]
[333326093,1722057047727,-500.0,0.00013972,2]
[333326095,1722057047738,-500.0,0.00013972,2]
[333326097,1722057047748,-1613.79,0.00013972,2]
[333326099,1722057047758,-1168.4,0.00013972,2]
[333326101,1722057047767,-500.0,0.00013972,2]
[333326103,1722057047776,-500.0,0.00013972,2]
[333326105,1722057047786,-5036.43,0.00013972,2]
[333326107,1722057047795,-545.27,0.00013972,2]
[333326109,1722057047805,-2281.35,0.00013972,2]
[333326111,1722057047814,-1184.39,0.00013972,2]
[333326113,1722057047823,-2121.75,0.00013972,2]
[333326115,1722057047833,-500.0,0.00013972,2]
[333326117,1722057047842,-1322.56,0.00013972,2]
[333326119,1722057047852,-500.0,0.00013972,2]
[333326121,1722057047861,-500.0,0.00013972,2]
[333326123,1722057047871,-500.0,0.00013972,2]
[333326125,1722057047880,-559.12,0.00013972,2]
[333326127,1722057047889,-500.0,0.00013972,2]
[333326129,1722057047899,-1215.8,0.00013972,2]
[333326131,1722057047908,-505.79929921,0.00013972,2]
[333326133,1722057047918,-8661.72,0.00013972,2]
[333326135,1722057047928,-2445.72,0.00013972,2]
[333326137,1722057047938,-500.0,0.00013972,2]
[333326139,1722057047947,-505.23021985,0.00013972,2]
[333326141,1722057047957,-500.0,0.00013972,2]
[333326143,1722057047966,-659.48,0.00013972,2]
[333326145,1722057047976,-500.0,0.00013972,2]
[333326147,1722057047986,-500.0,0.00013972,2]
[333326149,1722057047995,-3531.71,0.00013972,2]
[333326151,1722057048004,-500.0,0.00013972,2]
[333326153,1722057048014,-243.70941437,0.00013972,2]
[333326155,1722057048023,-888.43,0.00013972,2]
[333326157,1722057048037,-833.23,0.00013972,2]
[333326159,1722057048046,-1698.04,0.00013972,2]
[333326161,1722057048055,-523.7,0.00013972,2]
[333326163,1722057048065,-753.37,0.00013972,2]
[333326165,1722057048073,-1870.98,0.00013972,2]
[333326167,1722057048082,-1992.72,0.00013972,2]
[333326169,1722057048091,-1183.49,0.00013972,2]
[333326171,1722057048100,-500.0,0.00013972,2]
[333326173,1722057048110,-1342.72,0.00013972,2]
[333326175,1722057048120,-500.0,0.00013972,2]
[333326177,1722057048131,-500.0,0.00013972,2]
[333326179,1722057048140,-945.58,0.00013972,2]
[333326181,1722057048150,-5391.16363356,0.00013972,2]
[333326218,1722057048648,-448.19660087,0.00013588,2]
[333326219,1722057048680,-748.6739835,0.00013588,2]
[333326220,1722057048691,-151.0,0.00013699,2]
[333326221,1722057048700,-151.0,0.00013699,2]
[333326222,1722057048711,-1103.94636644,0.00013972,2]
[333326223,1722057048721,-50.24610457,0.00013972,2]
[333326224,1722057068069,498.90076275,0.00010959,2]
[333326225,1722057068092,24.55923725,0.00010959,2]
[333326226,1722057078634,436.22,0.00010959,2]
[333326227,1722057089422,363.52,0.00010959,2]
[333326228,1722057093095,200.0,0.0001,2]
[333326229,1722057093143,400.0,0.0001137,2]
[333326230,1722057099678,758.16801819,0.00012121,2]
[333326231,1722057099701,1348.75213355,0.00012121,2]
[333326232,1722057099926,103.37241256,0.00010959,2]
[333326233,1722057099950,199.55758744,0.00010959,2]
[333326234,1722057109334,727.82202701,9.999e-05,2]
[333326235,1722057110409,1.50898537,0.00010959,2]
[333326236,1722057110457,249.67334773,9.999e-05,2]
[333326237,1722057110702,154.95075127,9.999e-05,2]
[333326238,1722057114979,3782.59755445,0.0001,2]
[333326239,1722057115629,180.32453325,9.999e-05,2]
[333326240,1722057115715,302.46134174,9.999e-05,2]
[333326241,1722057117811,138.36922303,0.0001,2]
[333326267,1722058028118,-1617.84086504,9.509e-05,2]
[333326268,1722058028140,-300.0,9.998e-05,2]
[333326269,1722058028164,-200.0,9.999e-05,2]
[333326270,1722058028187,-116.14913496,9.999e-05,2]
[333326271,1722058045099,-38.91615497,9.999e-05,2]
[333326272,1722058045120,-154.9044066,9.999e-05,2]
[333326273,1722058045142,-514.42912121,9.999e-05,2]
[333326274,1722058045166,-154.80014035,9.999e-05,2]
[333326275,1722058045187,-154.86142557,9.999e-05,2]
[333326276,1722058045209,-208.57429241,9.999e-05,2]
[333326277,1722058045232,-201.95185794,9.999e-05,2]
[333326278,1722058045256,-222.56260095,9.999e-05,2]
[333326281,1722058146136,-300.0,9.998e-05,2]
[333326282,1722058146159,-310.11501072,9.999e-05,2]
[333326283,1722058146185,-155.10636321,9.999e-05,2]
[333326284,1722058146205,-154.7825178,9.999e-05,2]
[333326285,1722058146229,-156.01947475,9.999e-05,2]
[333326286,1722058146251,-618.02262586,9.999e-05,2]
[333326287,1722058146274,-219.80294038,9.999e-05,2]
[333326288,1722058146294,-265.41958844,9.999e-05,2]
[333326289,1722058146315,-154.980485,9.999e-05,2]
[333326290,1722058146335,-154.71377951,9.999e-05,2]
[333326291,1722058146356,-55.31603222,9.999e-05,2]
[333326292,1722058148119,-479.90450138,9.999e-05,2]
[333326293,1722058148140,-155.44606034,9.999e-05,2]
[333326294,1722058148160,-206.11340531,9.999e-05,2]
[333326295,1722058148185,-156.12413799,9.999e-05,2]
[333326296,1722058148209,-154.80556083,9.999e-05,2]
[333326297,1722058148231,-160.28197357,9.999e-05,2]
[333326298,1722058148253,-154.76012181,9.999e-05,2]
[333326299,1722058148277,-196.59107414,9.999e-05,2]
[333326300,1722058148299,-569.01993462,9.999e-05,2]
[333326301,1722058148319,-154.88891483,9.999e-05,2]
[333326302,1722058148341,-1050.43870268,9.999e-05,2]
[333326303,1722058148361,-167.02318399,9.999e-05,2]
[333326304,1722058148383,-288.77131817,9.999e-05,2]
[333326305,1722058148408,-154.83567427,9.999e-05,2]
[333326306,1722058148430,-477.57756657,9.999e-05,2]
[333326307,1722058148452,-813.00772694,9.999e-05,2]
[333326308,1722058148474,-10141.1714302,0.0001,2]
[333326309,1722058148494,-154.71377951,0.0001,2]
[333326310,1722058148515,-218.05703421,0.0001,2]
[333326311,1722058148535,-1625.88982265,0.0001,2]
[333326312,1722058148556,-4708.30389863,0.0001,2]
[333326313,1722058148577,-200.60607571,0.0001,2]
[333326314,1722058148599,-155.09467997,0.0001,2]
[333326315,1722058148620,-154.71377951,0.0001,2]
[333326316,1722058148642,-234.49529509,0.0001,2]
[333326317,1722058148665,-174.19266395,0.0001,2]
[333326318,1722058148687,-8099.57891383,0.0001,2]
[333326319,1722058148708,-287.53104938,0.0001,2]
[333326320,1722058148732,-1325.8197377,0.00010513,2]
[333326321,1722058148752,-420.0,0.00010998,2]
[333326322,1722058148772,-202.54353147,0.00012121,2]
[333326323,1722058156008,252.19,0.00010959,2]
[333326324,1722058165095,-1854.19053923,0.000125,2]
[333326325,1722058166498,210.16,0.00010959,2]
[333326326,1722058177025,175.13,0.00010959,2]
[333326327,1722058188034,875.7,0.00010959,2]
[333326328,1722058193729,865.82941132,0.0001212,2]
[333326329,1722058200609,928.88859982,9.999e-05,2]
[333326330,1722058202274,190.4105277,0.0001212,2]
[333326331,1722058204239,273.37336231,9.9e-05,2]
[333326332,1722058205577,213.48350308,0.0001212,2]
[333326390,1722058238187,-784.93796227,0.000129,2]
[333326391,1722058238197,-784.93796221,0.000129,2]
[333326392,1722058238207,-455.01,0.00013246,2]
[333326393,1722058238219,-178.234523,0.00013425,2]
[333326394,1722058238230,-166.39814932,0.00013588,2]
[333326395,1722058238240,-166.39814932,0.0001359,2]
[333326396,1722058238252,-8050.92520488,0.00013598,2]
[333326397,1722058238266,-2538.19400706,0.00013598,2]
[333326413,1722058240543,-78298.88078806,0.00013598,2]
[333326414,1722058240556,-150.112233,0.000136,2]
[333326415,1722058240567,-18535.48363421,0.000136,2]
[333326416,1722058240576,-150.112233,0.000136,2]
[333326417,1722058240589,-166.39814932,0.00013678,2]
[333326418,1722058240600,-37793.80489061,0.00013686,2]
[333326419,1722058240613,-998.38889592,0.00013688,2]
[333326420,1722058240625,-501.82093202,0.00013698,2]
[333326421,1722058240636,-500.0,0.00013698,2]
[333326422,1722058240648,-500.0,0.00013698,2]
[333326423,1722058240659,-500.0,0.00013698,2]
[333326424,1722058240670,-343.62443316,0.00013698,2]
[333326425,1722058240681,-502.47743878,0.00013698,2]
[333326426,1722058240694,-502.13394886,0.00013698,2]
[333326427,1722058240704,-500.0,0.00013698,2]
[333326428,1722058240714,-500.0,0.00013698,2]
[333326429,1722058240726,-191.78454611,0.00013698,2]
[333326430,1722058240736,-500.0,0.00013698,2]
[333326431,1722058240746,-452.94481847,0.00013698,2]
[333326432,1722058240757,-500.0,0.00013698,2]
[333326433,1722058240766,-500.0,0.00013698,2]
[333326434,1722058240775,-190.05372415,0.00013698,2]
[333326435,1722058240785,-500.0,0.00013698,2]
[333326436,1722058240794,-500.0,0.00013698,2]
[333326437,1722058240803,-500.0,0.00013698,2]
[333326438,1722058240812,-500.0,0.00013698,2]
[333326439,1722058240822,-500.0,0.00013698,2]
[333326440,1722058240832,-469.49319836,0.00013698,2]
[333326441,1722058240841,-500.0,0.00013698,2]
[333326442,1722058240850,-500.0,0.00013698,2]
[333326443,1722058240859,-500.0,0.00013698,2]
[333326444,1722058240868,-500.0,0.00013698,2]
[333326445,1722058240878,-500.0,0.00013698,2]
[333326446,1722058240887,-500.0,0.00013698,2]
[333326447,1722058240897,-500.0,0.00013698,2]
[333326448,1722058240906,-500.0,0.00013698,2]
[333326449,1722058240916,-502.64214137,0.00013698,2]
[333326450,1722058240925,-513.43690189,0.00013698,2]
[333326451,1722058240934,-505.34279505,0.00013698,2]
[333326452,1722058240943,-624.92435556,0.00013698,2]
[333326453,1722058240952,-151.0,0.00013698,2]
[333326454,1722058240962,-501.76663855,0.00013698,2]
[333326455,1722058240971,-500.0,0.00013698,2]
[333326456,1722058240980,-703.07,0.00013698,2]
[333326457,1722058240989,-927.48,0.00013698,2]
[333326458,1722058240998,-500.68249841,0.00013698,2]
[333326459,1722058241007,-500.0,0.00013698,2]
[333326460,1722058241017,-513.98845385,0.00013698,2]
[333326461,1722058241026,-501.38770988,0.00013698,2]
[333326462,1722058241036,-500.0,0.00013698,2]
[333326463,1722058241046,-500.0,0.00013698,2]
[333326464,1722058241055,-500.0,0.00013698,2]
[333326465,1722058241065,-500.0,0.00013698,2]
[333326466,1722058241074,-500.0,0.00013698,2]
[333326467,1722058241083,-500.0,0.00013698,2]
[333326468,1722058241092,-501.53067688,0.00013698,2]
[333326469,1722058241102,-500.0,0.00013698,2]
[333326470,1722058241111,-500.0,0.00013698,2]
[333326471,1722058241121,-500.0,0.00013698,2]
[333326472,1722058241130,-533.48808814,0.00013698,2]
[333326473,1722058241139,-500.0,0.00013698,2]
[333326474,1722058241149,-500.0,0.00013698,2]
[333326475,1722058241158,-505.96971472,0.00013698,2]
[333326476,1722058241167,-500.0,0.00013698,2]
[333326477,1722058241176,-500.0,0.00013698,2]
[333326478,1722058241185,-500.0,0.00013698,2]
[333326479,1722058241195,-500.0,0.00013698,2]
[333326480,1722058241204,-500.0,0.00013698,2]
[333326481,1722058241213,-500.0,0.00013698,2]
[333326482,1722058241223,-500.0,0.00013698,2]
[333326483,1722058241232,-500.0,0.00013698,2]
[333326484,1722058241241,-500.0,0.00013698,2]
[333326485,1722058241253,-500.0,0.00013698,2]
[333326486,1722058241262,-500.0,0.00013698,2]
[333326487,1722058241272,-507.00156714,0.00013698,2]
[333326488,1722058241281,-500.0,0.00013698,2]
[333326489,1722058241291,-500.0,0.00013698,2]
[333326490,1722058241300,-500.0,0.00013698,2]
[333326491,1722058241310,-500.0,0.00013698,2]
[333326492,1722058241319,-500.0,0.00013698,2]
[333326493,1722058241330,-500.0,0.00013698,2]
[333326494,1722058241340,-500.0,0.00013698,2]
[333326495,1722058241350,-531.17427424,0.00013698,2]
[333326496,1722058241359,-505.35325312,0.00013698,2]
[333326497,1722058241369,-512.01041319,0.00013698,2]
[333326498,1722058241378,-502.76569526,0.00013698,2]
[333326499,1722058241388,-591.48,0.00013698,2]
[333326500,1722058241398,-500.0,0.00013698,2]
[333326501,1722058241407,-500.0,0.00013698,2]
[333326502,1722058241417,-532.9,0.00013698,2]
[333326503,1722058241426,-500.0,0.00013698,2]
[333326504,1722058241437,-752.61,0.00013698,2]
[333326505,1722058241447,-505.27099133,0.00013698,2]
[333326506,1722058241456,-500.0,0.00013698,2]
[333326507,1722058241466,-505.61158073,0.00013698,2]
[333326508,1722058241476,-500.0,0.00013698,2]
[333326509,1722058241486,-500.0,0.00013698,2]
[333326510,1722058241495,-500.0,0.00013698,2]
[333326511,1722058241504,-500.0,0.00013698,2]
[333326512,1722058241514,-621.31,0.00013698,2]
[333326513,1722058241523,-500.0,0.00013698,2]
[333326514,1722058241532,-676.23,0.00013698,2]
[333326515,1722058241542,-286.68811163,0.00013698,2]
[333326516,1722058241551,-541.61,0.00013698,2]
[333326517,1722058241561,-500.0,0.00013698,2]
[333326518,1722058241570,-500.0,0.00013698,2]
[333326519,1722058241580,-502.98975606,0.00013698,2]
[333326520,1722058241592,-500.0,0.00013698,2]
[333326521,1722058241602,-557.79390933,0.00013698,2]
[333326522,1722058241614,-500.0,0.00013698,2]
[333326523,1722058241624,-500.0,0.00013698,2]
[333326524,1722058241636,-500.0,0.00013698,2]
[333326525,1722058241647,-500.0,0.00013698,2]
[333326526,1722058241658,-500.0,0.00013698,2]
[333326527,1722058241668,-500.0,0.00013698,2]
[333326528,1722058241678,-500.0,0.00013698,2]
[333326529,1722058241689,-323.24111165,0.00013698,2]
[333326530,1722058241700,-500.0,0.00013698,2]
[333326531,1722058241711,-500.0,0.00013698,2]
[333326532,1722058241722,-500.0,0.00013698,2]
[333326533,1722058241732,-500.0,0.00013698,2]
[333326534,1722058241743,-500.0,0.00013698,2]
[333326535,1722058241754,-500.0,0.00013698,2]
[333326536,1722058241765,-500.0,0.00013698,2]
[333326537,1722058241774,-906.72,0.00013698,2]
[333326538,1722058241784,-503.57049156,0.00013698,2]
[333326539,1722058241793,-500.0,0.00013698,2]
[333326540,1722058241805,-503.8183989,0.00013698,2]
[333326541,1722058241815,-500.0,0.00013698,2]
[333326542,1722058241826,-500.0,0.00013698,2]
[333326543,1722058241837,-500.0,0.00013698,2]
[333326544,1722058241847,-501.93976237,0.00013698,2]
[333326545,1722058241857,-500.0,0.00013698,2]
[333326546,1722058241867,-500.0,0.00013698,2]
[333326547,1722058241877,-500.0,0.00013698,2]
[333326548,1722058241886,-500.0,0.00013698,2]
[333326549,1722058241896,-500.0,0.00013698,2]
[333326550,1722058241905,-500.0,0.00013698,2]
[333326551,1722058241914,-500.0,0.00013698,2]
[333326552,1722058241923,-1025.21,0.00013698,2]
[333326553,1722058241933,-500.0,0.00013698,2]
[333326554,1722058241942,-500.0,0.00013698,2]
[333326555,1722058241951,-753.37,0.00013698,2]
[333326556,1722058241960,-500.0,0.00013698,2]
[333326557,1722058241970,-804.25,0.00013698,2]
[333326558,1722058241979,-502.50496198,0.00013698,2]
[333326559,1722058241988,-393.76072345,0.00013698,2]
[333326560,1722058241997,-500.0,0.00013698,2]
[333326561,1722058242008,-500.0,0.00013698,2]
[333326562,1722058242017,-500.0,0.00013698,2]
[333326563,1722058242026,-500.0,0.00013698,2]
[333326564,1722058242036,-562.96310456,0.00013698,2]
[333326565,1722058242045,-1411.7,0.00013698,2]
[333326566,1722058242055,-500.0,0.00013698,2]
[333326567,1722058242064,-500.0,0.00013698,2]
[333326568,1722058242074,-500.0,0.00013698,2]
[333326569,1722058242083,-500.0,0.00013698,2]
[333326570,1722058242093,-500.0,0.00013698,2]
[333326571,1722058242103,-500.0,0.00013698,2]
[333326572,1722058242113,-500.0,0.00013698,2]
[333326573,1722058242122,-500.0,0.00013698,2]
[333326574,1722058242132,-500.0,0.00013698,2]
[333326575,1722058242141,-153.74903825,0.00013698,2]
[333326576,1722058242296,-500.0,0.00013698,2]
[333326577,1722058242306,-500.0,0.00013698,2]
[333326578,1722058242315,-500.0,0.00013698,2]
[333326579,1722058242325,-500.0,0.00013698,2]
[333326580,1722058242337,-510.23560817,0.00013698,2]
[333326581,1722058242348,-500.0,0.00013698,2]
[333326582,1722058242359,-500.0,0.00013698,2]
[333326583,1722058242369,-500.0,0.00013698,2]
[333326584,1722058242379,-669.53,0.00013698,2]
[333326585,1722058242389,-500.0,0.00013698,2]
[333326586,1722058242401,-500.0,0.00013698,2]
[333326587,1722058242411,-664.71,0.00013698,2]
[333326588,1722058242421,-500.0,0.00013698,2]
[333326589,1722058242432,-500.0,0.00013698,2]
[333326590,1722058242443,-500.0,0.00013698,2]
[333326591,1722058242453,-500.0,0.00013698,2]
[333326592,1722058242464,-500.0,0.00013698,2]
[333326593,1722058242473,-500.0,0.00013698,2]
[333326594,1722058242482,-500.0,0.00013698,2]
[333326595,1722058242491,-500.0,0.00013698,2]
[333326596,1722058242501,-500.0,0.00013698,2]
[333326597,1722058242511,-608.52815319,0.00013698,2]
[333326598,1722058242520,-500.0,0.00013698,2]
[333326599,1722058242530,-500.0,0.00013698,2]
[333326600,1722058242539,-500.0,0.00013698,2]
[333326601,1722058242548,-500.0,0.00013698,2]